{"text_format":"3","workbook":"xlsx","n_sheets":1,"sheets":["Šeimos mėnesinis biudžetas"],"not_rendered":{"defined_names":1},"read":"whole","date_system":"1900"}

{"sheet":"Šeimos mėnesinis biudžetas","index":0,"n_rows":68,"n_cols":9,"rows_kept":68,"merged":[[0,0,0,6],[2,0,2,1],[2,5,2,6],[8,5,8,6],[18,0,18,3],[27,5,27,8],[29,0,29,3],[36,0,36,3],[37,5,37,8],[42,0,42,3],[44,5,44,8],[54,0,54,3],[54,5,54,8],[61,0,61,3],[62,5,62,8]]}
["Šeimos mėnesinis biudžetas"]
[]
["Iš viso: numatytos išlaidos",null,"Iš viso: faktinės išlaidos","Iš viso: skirtumas",null,"Planuojamos mėnesinės pajamos"]
[null,{"$f":"Būstas[[#Totals],[Planuojama kaina]]+Transportas[[#Totals],[Planuojama kaina]]+Draudimas[[#Totals],[Planuojama kaina]]+Maistas[[#Totals],[Planuojama kaina]]+Vaikai[[#Totals],[Planuojama kaina]]+Teisėtas[[#Totals],[Planuojama kaina]]+Santaupos[[#Totals],[Planuojama kaina]]+Paskolos[[#Totals],[Planuojama kaina]]+Pramogos[[#Totals],[Planuojama kaina]]+Mokesčiai[[#Totals],[Planuojama kaina]]+Asmeninė_higiena[[#Totals],[Planuojama kaina]]+Naminiai_gyvūnai[[#Totals],[Planuojama kaina]]+Dovanos[[#Totals],[Planuojama kaina]]","v":{"v":1203,"d":"1,203 Lt"}},{"$f":"Būstas[[#Totals],[Tikroji kaina]]+Transportas[[#Totals],[Tikroji kaina]]+Draudimas[[#Totals],[Tikroji kaina]]+Maistas[[#Totals],[Tikroji kaina]]+Vaikai[[#Totals],[Tikroji kaina]]+Teisėtas[[#Totals],[Tikroji kaina]]+Santaupos[[#Totals],[Tikroji kaina]]+Paskolos[[#Totals],[Tikroji kaina]]+Pramogos[[#Totals],[Tikroji kaina]]+Mokesčiai[[#Totals],[Tikroji kaina]]+Asmeninė_higiena[[#Totals],[Tikroji kaina]]+Naminiai_gyvūnai[[#Totals],[Tikroji kaina]]+Dovanos[[#Totals],[Tikroji kaina]]","v":{"v":1317,"d":"1,317 Lt"}},{"$f":"Būstas[[#Totals],[Skirtumas]]+Transportas[[#Totals],[Skirtumas]]+Draudimas[[#Totals],[Skirtumas]]+Maistas[[#Totals],[Skirtumas]]+Vaikai[[#Totals],[Skirtumas]]+Teisėtas[[#Totals],[Skirtumas]]+Santaupos[[#Totals],[Skirtumas]]+Paskolos[[#Totals],[Skirtumas]]+Pramogos[[#Totals],[Skirtumas]]+Mokesčiai[[#Totals],[Skirtumas]]+Asmeninė_higiena[[#Totals],[Skirtumas]]+Naminiai_gyvūnai[[#Totals],[Skirtumas]]+Dovanos[[#Totals],[Skirtumas]]","v":{"v":-114,"d":"114 Lt"}},null,"1 Pajamos",{"v":4000,"d":"4,000 Lt"}]
[{"$nulls":5},"2 Pajamos",{"v":1200,"d":"1,200 Lt"}]
["Būstas","Planuojama kaina","Tikroji kaina","Skirtumas",null,"Papildomos pajamos",{"v":300,"d":"300 Lt"}]
["Hipoteka arba nuoma",{"v":1000,"d":"1,000 Lt"},{"v":1000,"d":"1,000 Lt"},{"$f":"Būstas[Planuojama kaina]-Būstas[Tikroji kaina]","v":{"v":0,"d":"0 Lt"}},null,"Iš viso: mėnesinės pajamos",{"$f":"SUM(G4:G6)","v":{"v":5500,"d":"5,500 Lt"}}]
["Antra hipoteka arba nuoma",{"v":0,"d":"0 Lt"},{"v":0,"d":"0 Lt"},{"$f":"Būstas[Planuojama kaina]-Būstas[Tikroji kaina]","v":{"v":0,"d":"0 Lt"}}]
["Telefonas",{"v":62,"d":"62 Lt"},{"v":100,"d":"100 Lt"},{"$f":"Būstas[Planuojama kaina]-Būstas[Tikroji kaina]","v":{"v":-38,"d":"38 Lt"}},null,"Faktinės mėnesinės pajamos"]
["Elektra",{"v":44,"d":"44 Lt"},{"v":125,"d":"125 Lt"},{"$f":"Būstas[Planuojama kaina]-Būstas[Tikroji kaina]","v":{"v":-81,"d":"81 Lt"}},null,"1 Pajamos",{"v":4000,"d":"4,000 Lt"}]
["Dujos",{"v":22,"d":"22 Lt"},{"v":35,"d":"35 Lt"},{"$f":"Būstas[Planuojama kaina]-Būstas[Tikroji kaina]","v":{"v":-13,"d":"13 Lt"}},null,"2 Pajamos",{"v":1200,"d":"1,200 Lt"}]
["Vanduo ir kanalizacija",{"v":8,"d":"8 Lt"},{"v":8,"d":"8 Lt"},{"$f":"Būstas[Planuojama kaina]-Būstas[Tikroji kaina]","v":{"v":0,"d":"0 Lt"}},null,"Papildomos pajamos",{"v":300,"d":"300 Lt"}]
["Kabelinė",{"v":34,"d":"34 Lt"},{"v":39,"d":"39 Lt"},{"$f":"Būstas[Planuojama kaina]-Būstas[Tikroji kaina]","v":{"v":-5,"d":"5 Lt"}},null,"Iš viso: mėnesinės pajamos",{"$f":"SUM(G10:G12)","v":{"v":5500,"d":"5,500 Lt"}}]
["Šiukšlių išvėžimas",{"v":10,"d":"10 Lt"},{"v":10,"d":"10 Lt"},{"$f":"Būstas[Planuojama kaina]-Būstas[Tikroji kaina]","v":{"v":0,"d":"0 Lt"}}]
["Priežiūra arba remontas",{"v":23,"d":"23 Lt"},{"v":0,"d":"0 Lt"},{"$f":"Būstas[Planuojama kaina]-Būstas[Tikroji kaina]","v":{"v":23,"d":"23 Lt"}},null,"Projektuojamas balansas\n",{"$f":"SUM(G7-B4)","v":{"v":4297,"d":"4,297 Lt"}}]
["Reikmenys",{"v":0,"d":"0 Lt"},{"v":0,"d":"0 Lt"},{"$f":"Būstas[Planuojama kaina]-Būstas[Tikroji kaina]","v":{"v":0,"d":"0 Lt"}},null,"Tikrasis balansas",{"$f":"SUM(G13-C4)","v":{"v":4183,"d":"4,183 Lt"}}]
["Kita",{"v":0,"d":"0 Lt"},{"v":0,"d":"0 Lt"},{"$f":"Būstas[Planuojama kaina]-Būstas[Tikroji kaina]","v":{"v":0,"d":"0 Lt"}},null,"Skirtumas",{"$f":"SUM(G16-G15)","v":{"v":-114,"d":"114 Lt"}}]
["Iš viso",{"$f":"SUBTOTAL(109,Būstas[Planuojama kaina])","v":{"v":1203,"d":"1,203 Lt"}},{"$f":"SUBTOTAL(109,Būstas[Tikroji kaina])","v":{"v":1317,"d":"1,317 Lt"}},{"$f":"SUBTOTAL(109,Būstas[Skirtumas])","v":{"v":-114,"d":"114 Lt"}}]
[]
["Transportas","Planuojama kaina","Tikroji kaina","Skirtumas",null,"Paskolos","Planuojama kaina","Tikroji kaina","Skirtumas"]
["1 automobilio mokestis",null,null,{"$f":"Transportas[Planuojama kaina]-Transportas[Tikroji kaina]","v":{"v":0,"d":"0 Lt"}},null,"Asmeninės",null,null,{"$f":"Paskolos[Planuojama kaina]-Paskolos[Tikroji kaina]","v":{"v":0,"d":"0 Lt"}}]
["2 automobilio mokestis",null,null,{"$f":"Transportas[Planuojama kaina]-Transportas[Tikroji kaina]","v":{"v":0,"d":"0 Lt"}},null,"Studentai",null,null,{"$f":"Paskolos[Planuojama kaina]-Paskolos[Tikroji kaina]","v":{"v":0,"d":"0 Lt"}}]
["Mokestis už važiavimą autobusu / taksi",null,null,{"$f":"Transportas[Planuojama kaina]-Transportas[Tikroji kaina]","v":{"v":0,"d":"0 Lt"}},null,"Kreditinė kortelė",null,null,{"$f":"Paskolos[Planuojama kaina]-Paskolos[Tikroji kaina]","v":{"v":0,"d":"0 Lt"}}]
["Draudimas",null,null,{"$f":"Transportas[Planuojama kaina]-Transportas[Tikroji kaina]","v":{"v":0,"d":"0 Lt"}},null,"Kreditinė kortelė",null,null,{"$f":"Paskolos[Planuojama kaina]-Paskolos[Tikroji kaina]","v":{"v":0,"d":"0 Lt"}}]
["Leidimai",null,null,{"$f":"Transportas[Planuojama kaina]-Transportas[Tikroji kaina]","v":{"v":0,"d":"0 Lt"}},null,"Kreditinė kortelė",null,null,{"$f":"Paskolos[Planuojama kaina]-Paskolos[Tikroji kaina]","v":{"v":0,"d":"0 Lt"}}]
["Kuras",null,null,{"$f":"Transportas[Planuojama kaina]-Transportas[Tikroji kaina]","v":{"v":0,"d":"0 Lt"}},null,"Kita",null,null,{"$f":"Paskolos[Planuojama kaina]-Paskolos[Tikroji kaina]","v":{"v":0,"d":"0 Lt"}}]
["Priežiūra",null,null,{"$f":"Transportas[Planuojama kaina]-Transportas[Tikroji kaina]","v":{"v":0,"d":"0 Lt"}},null,"Iš viso",{"$f":"SUBTOTAL(109,Paskolos[Planuojama kaina])","v":{"v":0,"d":"0 Lt"}},{"$f":"SUBTOTAL(109,Paskolos[Tikroji kaina])","v":{"v":0,"d":"0 Lt"}},{"$f":"SUBTOTAL(109,Paskolos[Skirtumas])","v":{"v":0,"d":"0 Lt"}}]
["Kita",null,null,{"$f":"Transportas[Planuojama kaina]-Transportas[Tikroji kaina]","v":{"v":0,"d":"0 Lt"}}]
["Iš viso",{"$f":"SUBTOTAL(109,Transportas[Planuojama kaina])","v":{"v":0,"d":"0 Lt"}},{"$f":"SUBTOTAL(109,Transportas[Tikroji kaina])","v":{"v":0,"d":"0 Lt"}},{"$f":"SUBTOTAL(109,Transportas[Skirtumas])","v":{"v":0,"d":"0 Lt"}},null,"Pramogos","Planuojama kaina","Tikroji kaina","Skirtumas"]
[{"$nulls":5},"Vaizdo įrašai / DVD",null,null,{"$f":"Pramogos[Planuojama kaina]-Pramogos[Tikroji kaina]","v":{"v":0,"d":"0 Lt"}}]
["Draudimas","Planuojama kaina","Tikroji kaina","Skirtumas",null,"CD diskai",null,null,{"$f":"Pramogos[Planuojama kaina]-Pramogos[Tikroji kaina]","v":{"v":0,"d":"0 Lt"}}]
["Pagrindinis puslapis",null,null,{"$f":"Draudimas[Planuojama kaina]-Draudimas[Tikroji kaina]","v":{"v":0,"d":"0 Lt"}},null,"Filmai",null,null,{"$f":"Pramogos[Planuojama kaina]-Pramogos[Tikroji kaina]","v":{"v":0,"d":"0 Lt"}}]
["Sveikata",null,null,{"$f":"Draudimas[Planuojama kaina]-Draudimas[Tikroji kaina]","v":{"v":0,"d":"0 Lt"}},null,"Koncertai",null,null,{"$f":"Pramogos[Planuojama kaina]-Pramogos[Tikroji kaina]","v":{"v":0,"d":"0 Lt"}}]
["Gyvenimas",null,null,{"$f":"Draudimas[Planuojama kaina]-Draudimas[Tikroji kaina]","v":{"v":0,"d":"0 Lt"}},null,"Sportiniai renginiai",null,null,{"$f":"Pramogos[Planuojama kaina]-Pramogos[Tikroji kaina]","v":{"v":0,"d":"0 Lt"}}]
["Kita",null,null,{"$f":"Draudimas[Planuojama kaina]-Draudimas[Tikroji kaina]","v":{"v":0,"d":"0 Lt"}},null,"Teatras",null,null,{"$f":"Pramogos[Planuojama kaina]-Pramogos[Tikroji kaina]","v":{"v":0,"d":"0 Lt"}}]
["Iš viso",{"$f":"SUBTOTAL(109,Draudimas[Planuojama kaina])","v":{"v":0,"d":"0 Lt"}},{"$f":"SUBTOTAL(109,Draudimas[Tikroji kaina])","v":{"v":0,"d":"0 Lt"}},{"$f":"SUBTOTAL(109,Draudimas[Skirtumas])","v":{"v":0,"d":"0 Lt"}},null,"Kita",null,null,{"$f":"Pramogos[Planuojama kaina]-Pramogos[Tikroji kaina]","v":{"v":0,"d":"0 Lt"}}]
[{"$nulls":5},"Iš viso",{"$f":"SUBTOTAL(109,Pramogos[Planuojama kaina])","v":{"v":0,"d":"0 Lt"}},{"$f":"SUBTOTAL(109,Pramogos[Tikroji kaina])","v":{"v":0,"d":"0 Lt"}},{"$f":"SUBTOTAL(109,Pramogos[Skirtumas])","v":{"v":0,"d":"0 Lt"}}]
["Maistas","Planuojama kaina","Tikroji kaina","Skirtumas"]
["Bakalėjos ir gastronomijos prekės",null,null,{"$f":"Maistas[Planuojama kaina]-Maistas[Tikroji kaina]","v":{"v":0,"d":"0 Lt"}},null,"Mokesčiai","Planuojama kaina","Tikroji kaina","Skirtumas"]
["Pietūs kavinėse",null,null,{"$f":"Maistas[Planuojama kaina]-Maistas[Tikroji kaina]","v":{"v":0,"d":"0 Lt"}},null,"Federaliniai",null,null,{"$f":"Mokesčiai[Planuojama kaina]-Mokesčiai[Tikroji kaina]","v":{"v":0,"d":"0 Lt"}}]
["Kita",null,null,{"$f":"Maistas[Planuojama kaina]-Maistas[Tikroji kaina]","v":{"v":0,"d":"0 Lt"}},null,"Valstija",null,null,{"$f":"Mokesčiai[Planuojama kaina]-Mokesčiai[Tikroji kaina]","v":{"v":0,"d":"0 Lt"}}]
["Iš viso",{"$f":"SUBTOTAL(109,Maistas[Planuojama kaina])","v":{"v":0,"d":"0 Lt"}},{"$f":"SUBTOTAL(109,Maistas[Tikroji kaina])","v":{"v":0,"d":"0 Lt"}},{"$f":"SUBTOTAL(109,Maistas[Skirtumas])","v":{"v":0,"d":"0 Lt"}},null,"Vietinis",null,null,{"$f":"Mokesčiai[Planuojama kaina]-Mokesčiai[Tikroji kaina]","v":{"v":0,"d":"0 Lt"}}]
[{"$nulls":5},"Kita",null,null,{"$f":"Mokesčiai[Planuojama kaina]-Mokesčiai[Tikroji kaina]","v":{"v":0,"d":"0 Lt"}}]
["Vaikai","Planuojama kaina","Tikroji kaina","Skirtumas",null,"Iš viso",{"$f":"SUBTOTAL(109,Mokesčiai[Planuojama kaina])","v":{"v":0,"d":"0 Lt"}},{"$f":"SUBTOTAL(109,Mokesčiai[Tikroji kaina])","v":{"v":0,"d":"0 Lt"}},{"$f":"SUBTOTAL(109,Mokesčiai[Skirtumas])","v":{"v":0,"d":"0 Lt"}}]
["Medicina",null,null,{"$f":"Vaikai[Planuojama kaina]-Vaikai[Tikroji kaina]","v":{"v":0,"d":"0 Lt"}}]
["Apranga",null,null,{"$f":"Vaikai[Planuojama kaina]-Vaikai[Tikroji kaina]","v":{"v":0,"d":"0 Lt"}},null,"Asmeninė_higiena","Planuojama kaina","Tikroji kaina","Skirtumas"]
["Mokyklinės (mokslo) išlaidos",null,null,{"$f":"Vaikai[Planuojama kaina]-Vaikai[Tikroji kaina]","v":{"v":0,"d":"0 Lt"}},null,"Medicina",null,null,{"$f":"Asmeninė_higiena[Planuojama kaina]-Asmeninė_higiena[Tikroji kaina]","v":{"v":0,"d":"0 Lt"}}]
["Mokyklinės reikmenys",null,null,{"$f":"Vaikai[Planuojama kaina]-Vaikai[Tikroji kaina]","v":{"v":0,"d":"0 Lt"}},null,"Plaukai / nagai",null,null,{"$f":"Asmeninė_higiena[Planuojama kaina]-Asmeninė_higiena[Tikroji kaina]","v":{"v":0,"d":"0 Lt"}}]
["Nario mokesčiai ir rinkliavos",null,null,{"$f":"Vaikai[Planuojama kaina]-Vaikai[Tikroji kaina]","v":{"v":0,"d":"0 Lt"}},null,"Apranga",null,null,{"$f":"Asmeninė_higiena[Planuojama kaina]-Asmeninė_higiena[Tikroji kaina]","v":{"v":0,"d":"0 Lt"}}]
["Pinigai priešpiečiams",null,null,{"$f":"Vaikai[Planuojama kaina]-Vaikai[Tikroji kaina]","v":{"v":0,"d":"0 Lt"}},null,"Sausas valymas",null,null,{"$f":"Asmeninė_higiena[Planuojama kaina]-Asmeninė_higiena[Tikroji kaina]","v":{"v":0,"d":"0 Lt"}}]
["Vaiko priežiūra",null,null,{"$f":"Vaikai[Planuojama kaina]-Vaikai[Tikroji kaina]","v":{"v":0,"d":"0 Lt"}},null,"Sveikatos klubas",null,null,{"$f":"Asmeninė_higiena[Planuojama kaina]-Asmeninė_higiena[Tikroji kaina]","v":{"v":0,"d":"0 Lt"}}]
["Žaislai / žaidimai",null,null,{"$f":"Vaikai[Planuojama kaina]-Vaikai[Tikroji kaina]","v":{"v":0,"d":"0 Lt"}},null,"Nario mokesčiai / rinkliavos",null,null,{"$f":"Asmeninė_higiena[Planuojama kaina]-Asmeninė_higiena[Tikroji kaina]","v":{"v":0,"d":"0 Lt"}}]
["Kita",null,null,{"$f":"Vaikai[Planuojama kaina]-Vaikai[Tikroji kaina]","v":{"v":0,"d":"0 Lt"}},null,"Kita",null,null,{"$f":"Asmeninė_higiena[Planuojama kaina]-Asmeninė_higiena[Tikroji kaina]","v":{"v":0,"d":"0 Lt"}}]
["Iš viso",{"$f":"SUBTOTAL(109,Vaikai[Planuojama kaina])","v":{"v":0,"d":"0 Lt"}},{"$f":"SUBTOTAL(109,Vaikai[Tikroji kaina])","v":{"v":0,"d":"0 Lt"}},{"$f":"SUBTOTAL(109,Vaikai[Skirtumas])","v":{"v":0,"d":"0 Lt"}},null,"Iš viso",{"$f":"SUBTOTAL(109,Asmeninė_higiena[Planuojama kaina])","v":{"v":0,"d":"0 Lt"}},{"$f":"SUBTOTAL(109,Asmeninė_higiena[Tikroji kaina])","v":{"v":0,"d":"0 Lt"}},{"$f":"SUBTOTAL(109,Asmeninė_higiena[Skirtumas])","v":{"v":0,"d":"0 Lt"}}]
[]
["Teisėtas","Planuojama kaina","Tikroji kaina","Skirtumas",null,"Naminiai_gyvūnai","Planuojama kaina","Tikroji kaina","Skirtumas"]
["Advokatai",null,null,{"$f":"Teisėtas[Planuojama kaina]-Teisėtas[Tikroji kaina]","v":{"v":0,"d":"0 Lt"}},null,"Maistas",null,null,{"$f":"Naminiai_gyvūnai[Planuojama kaina]-Naminiai_gyvūnai[Tikroji kaina]","v":{"v":0,"d":"0 Lt"}}]
["Alimentai",null,null,{"$f":"Teisėtas[Planuojama kaina]-Teisėtas[Tikroji kaina]","v":{"v":0,"d":"0 Lt"}},null,"Medicina",null,null,{"$f":"Naminiai_gyvūnai[Planuojama kaina]-Naminiai_gyvūnai[Tikroji kaina]","v":{"v":0,"d":"0 Lt"}}]
["Mokėjimai",null,null,{"$f":"Teisėtas[Planuojama kaina]-Teisėtas[Tikroji kaina]","v":{"v":0,"d":"0 Lt"}},null,"Arklių priežiūra",null,null,{"$f":"Naminiai_gyvūnai[Planuojama kaina]-Naminiai_gyvūnai[Tikroji kaina]","v":{"v":0,"d":"0 Lt"}}]
["Kita",null,null,{"$f":"Teisėtas[Planuojama kaina]-Teisėtas[Tikroji kaina]","v":{"v":0,"d":"0 Lt"}},null,"Žaislai",null,null,{"$f":"Naminiai_gyvūnai[Planuojama kaina]-Naminiai_gyvūnai[Tikroji kaina]","v":{"v":0,"d":"0 Lt"}}]
["Iš viso",{"$f":"SUBTOTAL(109,Teisėtas[Planuojama kaina])","v":{"v":0,"d":"0 Lt"}},{"$f":"SUBTOTAL(109,Teisėtas[Tikroji kaina])","v":{"v":0,"d":"0 Lt"}},{"$f":"SUBTOTAL(109,Teisėtas[Skirtumas])","v":{"v":0,"d":"0 Lt"}},null,"Kita",null,null,{"$f":"Naminiai_gyvūnai[Planuojama kaina]-Naminiai_gyvūnai[Tikroji kaina]","v":{"v":0,"d":"0 Lt"}}]
[{"$nulls":5},"Iš viso",{"$f":"SUBTOTAL(109,Naminiai_gyvūnai[Planuojama kaina])","v":{"v":0,"d":"0 Lt"}},{"$f":"SUBTOTAL(109,Naminiai_gyvūnai[Tikroji kaina])","v":{"v":0,"d":"0 Lt"}},{"$f":"SUBTOTAL(109,Naminiai_gyvūnai[Skirtumas])","v":{"v":0,"d":"0 Lt"}}]
["Santaupos / investicijos","Planuojama kaina","Tikroji kaina","Skirtumas"]
["Pensijos kaupimo sąskaita",null,null,{"$f":"Santaupos[Planuojama kaina]-Santaupos[Tikroji kaina]","v":{"v":0,"d":"0 Lt"}},null,"Dovanos ir aukojimai","Planuojama kaina","Tikroji kaina","Skirtumas"]
["Investicijų sąskaita",null,null,{"$f":"Santaupos[Planuojama kaina]-Santaupos[Tikroji kaina]","v":{"v":0,"d":"0 Lt"}},null,"1 Labdara",null,null,{"$f":"Dovanos[Planuojama kaina]-Dovanos[Tikroji kaina]","v":{"v":0,"d":"0 Lt"}}]
["Kolegija",null,null,{"$f":"Santaupos[Planuojama kaina]-Santaupos[Tikroji kaina]","v":{"v":0,"d":"0 Lt"}},null,"2 Labdara",null,null,{"$f":"Dovanos[Planuojama kaina]-Dovanos[Tikroji kaina]","v":{"v":0,"d":"0 Lt"}}]
["Kita",null,null,{"$f":"Santaupos[Planuojama kaina]-Santaupos[Tikroji kaina]","v":{"v":0,"d":"0 Lt"}},null,"3 Labdara",null,null,{"$f":"Dovanos[Planuojama kaina]-Dovanos[Tikroji kaina]","v":{"v":0,"d":"0 Lt"}}]
["Iš viso",{"$f":"SUBTOTAL(109,Santaupos[Planuojama kaina])","v":{"v":0,"d":"0 Lt"}},{"$f":"SUBTOTAL(109,Santaupos[Tikroji kaina])","v":{"v":0,"d":"0 Lt"}},{"$f":"SUBTOTAL(109,Santaupos[Skirtumas])","v":{"v":0,"d":"0 Lt"}},null,"Iš viso",{"$f":"SUBTOTAL(109,Dovanos[Planuojama kaina])","v":{"v":0,"d":"0 Lt"}},{"$f":"SUBTOTAL(109,Dovanos[Tikroji kaina])","v":{"v":0,"d":"0 Lt"}},{"$f":"SUBTOTAL(109,Dovanos[Skirtumas])","v":{"v":0,"d":"0 Lt"}}]